[Event "*** Titled Tuesday 3|2 Blitz"]
[Site "Chess.com"]
[Date "2017.06.06"]
[Round "4"]
[White "ProfCalculus"]
[Black "Enzy63"]
[Result "1/2-1/2"]
[WhiteElo "2153"]
[BlackElo "2048"]
[TimeControl "180+2"]
[EndTime "14:41:02 PDT"]
[Termination "Game drawn by repetition"]

1. d4 {[%clk 0:03:02]} 1... Nf6 {[%clk 0:03:00]} 2. c4 {[%clk 0:03:02.7]} 2...
g6 {[%clk 0:03:00.8]} 3. Nc3 {[%clk 0:03:03]} 3... Bg7 {[%clk 0:03:01.8]} 4. e4
{[%clk 0:03:03.5]} 4... d6 {[%clk 0:03:02.9]} 5. f4 {[%clk 0:03:04.3]} 5... O-O
{[%clk 0:03:02.8]} 6. Nf3 {[%clk 0:03:05.7]} 6... e5 {[%clk 0:03:03.9]} 7. dxe5
{[%clk 0:03:04.7]} 7... dxe5 {[%clk 0:03:04.2]} 8. Qxd8 {[%clk 0:03:05.3]} 8...
Rxd8 {[%clk 0:03:04.1]} 9. Nxe5 {[%clk 0:03:06.2]} 9... Nxe4 {[%clk 0:02:58.4]}
10. Nxe4 {[%clk 0:03:04.1]} 10... Re8 {[%clk 0:02:59]} 11. Bd3 {[%clk
0:02:31.3]} 11... f6 {[%clk 0:02:57.1]} 12. O-O {[%clk 0:02:11.2]} 12... fxe5
{[%clk 0:02:56.4]} 13. fxe5 {[%clk 0:02:11.7]} 13... Bf5 {[%clk 0:02:04.5]} 14.
Nf6+ {[%clk 0:02:10.6]} 14... Bxf6 {[%clk 0:02:04.7]} 15. exf6 {[%clk
0:02:11.5]} 15... Be6 {[%clk 0:01:33.7]} 16. Bh6 {[%clk 0:02:04.9]} 16... Nd7
{[%clk 0:01:24.4]} 17. Rae1 {[%clk 0:02:04]} 17... Bf7 {[%clk 0:01:17.6]} 18.
Bg7 {[%clk 0:01:52.5]} 18... Rxe1 {[%clk 0:01:13.4]} 19. Rxe1 {[%clk 0:01:50.7]}
19... Re8 {[%clk 0:01:14.9]} 20. Rxe8+ {[%clk 0:01:50.3]} 20... Bxe8 {[%clk
0:01:15.7]} 21. Kf2 {[%clk 0:01:47.7]} 21... c6 {[%clk 0:01:05.5]} 22. Ke3
{[%clk 0:01:36.4]} 22... Kf7 {[%clk 0:01:05.7]} 23. Kd4 {[%clk 0:01:34.1]} 23...
Nxf6 {[%clk 0:01:04.5]} 24. Bh6 {[%clk 0:01:28.2]} 24... Nd7 {[%clk 0:00:56.2]}
25. Bf4 {[%clk 0:01:27.6]} 25... Ke6 {[%clk 0:00:48.2]} 26. Be2 {[%clk
0:01:22.3]} 26... Kf5 {[%clk 0:00:38.2]} 27. Bc7 {[%clk 0:01:15.1]} 27... h5
{[%clk 0:00:38.2]} 28. b4 {[%clk 0:01:10.4]} 28... g5 {[%clk 0:00:35.6]} 29. a4
{[%clk 0:01:04.2]} 29... Nf6 {[%clk 0:00:27.7]} 30. Bd3+ {[%clk 0:00:59.9]}
30... Ke6 {[%clk 0:00:27.7]} 31. Bb8 {[%clk 0:00:57.3]} 31... a6 {[%clk
0:00:27.2]} 32. a5 {[%clk 0:00:56]} 32... c5+ {[%clk 0:00:21]} 33. bxc5 {[%clk
0:00:53.3]} 33... Bc6 {[%clk 0:00:21.9]} 34. g3 {[%clk 0:00:49.3]} 34... Ng4
{[%clk 0:00:21.2]} 35. h3 {[%clk 0:00:49.7]} 35... Nf2 {[%clk 0:00:21.3]} 36.
Bf1 {[%clk 0:00:49.3]} 36... Kf5 {[%clk 0:00:20.2]} 37. Bd6 {[%clk 0:00:43.1]}
37... g4 {[%clk 0:00:20.5]} 38. h4 {[%clk 0:00:43.1]} 38... Nh3 {[%clk 0:00:19]}
39. Bd3+ {[%clk 0:00:41.6]} 39... Kf6 {[%clk 0:00:19.8]} 40. Ke3 {[%clk
0:00:41.2]} 40... Kg7 {[%clk 0:00:19.3]} 41. Be4 {[%clk 0:00:39.9]} 41... Ng1
{[%clk 0:00:18.3]} 42. Bf5 {[%clk 0:00:39.3]} 42... Nf3 {[%clk 0:00:17.3]} 43.
Bc8 {[%clk 0:00:36.5]} 43... Kf6 {[%clk 0:00:17.5]} 44. Kf4 {[%clk 0:00:34.2]}
44... Kg6 {[%clk 0:00:18.6]} 45. Bf5+ {[%clk 0:00:33.5]} 45... Kf6 {[%clk
0:00:19.8]} 46. Bd3 {[%clk 0:00:30.8]} 46... Ne1 {[%clk 0:00:18.1]} 47. Be5+
{[%clk 0:00:28.3]} 47... Ke6 {[%clk 0:00:17.9]} 48. Bg6 {[%clk 0:00:25.6]} 48...
Ng2+ {[%clk 0:00:17.7]} 49. Kg5 {[%clk 0:00:24.1]} 49... Kxe5 {[%clk 0:00:19.1]}
50. Bxh5 {[%clk 0:00:24.1]} 50... Ne3 {[%clk 0:00:19.4]} 51. Bxg4 {[%clk
0:00:23.8]} 51... Nxg4 {[%clk 0:00:19.7]} 52. Kxg4 {[%clk 0:00:24.8]} 52... Kf6
{[%clk 0:00:20]} 53. Kf4 {[%clk 0:00:25.3]} 53... Kg6 {[%clk 0:00:19]} 54. g4
{[%clk 0:00:26.2]} 54... Bd7 {[%clk 0:00:18.7]} 55. h5+ {[%clk 0:00:26.4]} 55...
Kh6 {[%clk 0:00:18.7]} 56. Ke5 {[%clk 0:00:15.3]} 56... Kg5 {[%clk 0:00:19.5]}
57. Kd6 {[%clk 0:00:13.5]} 57... Bc6 {[%clk 0:00:19.9]} 58. Kc7 {[%clk
0:00:10.1]} 58... Bg2 {[%clk 0:00:17.5]} 59. Kb6 {[%clk 0:00:09.6]} 59... Bc6
{[%clk 0:00:17.9]} 60. Kc7 {[%clk 0:00:10.5]} 60... Kh6 {[%clk 0:00:18.7]} 61.
Kb6 {[%clk 0:00:10.5]} 61... Kg5 {[%clk 0:00:19.8]} 62. Kc7 {[%clk 0:00:11.3]}
62... Kh6 {[%clk 0:00:21.3]} 63. Kb6 {[%clk 0:00:12.3]} 63... Kg5 {[%clk
0:00:22.7]} 64. Kc7 {[%clk 0:00:13.4]} 64... Kh6 {[%clk 0:00:24.2]} 65. Kb6
{[%clk 0:00:14.3]} 65... Kg5 {[%clk 0:00:25.4]} 66. Kc7 {[%clk 0:00:15.1]}
1/2-1/2

[Event "*** Titled Tuesday 3|2 Blitz"]
[Site "Chess.com"]
[Date "2017.06.06"]
[Round "4"]
[White "swayamsm"]
[Black "kikydu96"]
[Result "1-0"]
[WhiteElo "2438"]
[BlackElo "2311"]
[TimeControl "180+2"]
[EndTime "14:41:10 PDT"]
[Termination "swayamsm won by resignation"]

1. e4 {[%clk 0:03:02]} 1... c5 {[%clk 0:03:00]} 2. Nf3 {[%clk 0:03:03.4]} 2...
d6 {[%clk 0:03:00.2]} 3. c3 {[%clk 0:02:59.3]} 3... Nf6 {[%clk 0:03:00.1]} 4.
Bd3 {[%clk 0:02:58.8]} 4... Nc6 {[%clk 0:03:00.7]} 5. O-O {[%clk 0:03:00.2]}
5... Bg4 {[%clk 0:02:57.3]} 6. Bc2 {[%clk 0:02:59.5]} 6... Ne5 {[%clk
0:02:53.1]} 7. d4 {[%clk 0:03:00.6]} 7... Nxf3+ {[%clk 0:02:46.5]} 8. gxf3
{[%clk 0:03:00.7]} 8... Bh3 {[%clk 0:02:47.9]} 9. Re1 {[%clk 0:02:58.3]} 9... e5
{[%clk 0:02:35.5]} 10. f4 {[%clk 0:02:41.6]} 10... Qc7 {[%clk 0:02:26.6]} 11. f5
{[%clk 0:02:36.3]} 11... O-O-O {[%clk 0:02:14.8]} 12. Bg5 {[%clk 0:02:33.2]}
12... Be7 {[%clk 0:01:56.3]} 13. Qf3 {[%clk 0:02:27.2]} 13... Bg4 {[%clk
0:01:55.6]} 14. Qg2 {[%clk 0:02:27.5]} 14... Bh5 {[%clk 0:01:38.7]} 15. Na3
{[%clk 0:02:13.2]} 15... g6 {[%clk 0:01:30.2]} 16. Qh3 {[%clk 0:01:09.2]} 16...
Rhg8 {[%clk 0:01:10.8]} 17. Kh1 {[%clk 0:01:00.9]} 17... Bg4 {[%clk 0:01:03.7]}
18. Qe3 {[%clk 0:00:56.6]} 18... gxf5 {[%clk 0:00:41]} 19. Bxf6 {[%clk
0:00:55.2]} 19... f4 {[%clk 0:00:26.8]} 20. Qd3 {[%clk 0:00:54.7]} 20... Bxf6
{[%clk 0:00:20.1]} 21. f3 {[%clk 0:00:51.1]} 21... Bh5 {[%clk 0:00:18]} 22. Rg1
{[%clk 0:00:49.9]} 22... Kb8 {[%clk 0:00:18.1]} 23. Rxg8 {[%clk 0:00:49.1]}
23... Rxg8 {[%clk 0:00:20]} 24. Rg1 {[%clk 0:00:51]} 24... Rxg1+ {[%clk
0:00:19.8]} 25. Kxg1 {[%clk 0:00:52.9]} 25... Bh4 {[%clk 0:00:18.5]} 26. Bb3
{[%clk 0:00:53.5]} 26... Qe7 {[%clk 0:00:18.4]} 27. Qf1 {[%clk 0:00:44.5]} 27...
Qg5+ {[%clk 0:00:18.7]} 28. Kh1 {[%clk 0:00:45.8]} 28... cxd4 {[%clk 0:00:19.5]}
29. cxd4 {[%clk 0:00:43.2]} 29... exd4 {[%clk 0:00:21.4]} 30. Bc4 {[%clk
0:00:40.9]} 30... Qc5 {[%clk 0:00:13]} 31. Nc2 {[%clk 0:00:38.8]} 31... d3
{[%clk 0:00:12.8]} 32. Bxd3 {[%clk 0:00:38.6]} 32... Qe5 {[%clk 0:00:09.3]} 33.
b3 {[%clk 0:00:33.3]} 33... Qc3 {[%clk 0:00:09.4]} 34. Kg2 {[%clk 0:00:34.6]}
34... Qd2+ {[%clk 0:00:10.2]} 35. Qe2 {[%clk 0:00:36.1]} 35... Qc1 {[%clk
0:00:09.4]} 36. Nd4 {[%clk 0:00:35.7]} 36... Bf6 {[%clk 0:00:09]} 37. Nf5 {[%clk
0:00:35.3]} 37... Be5 {[%clk 0:00:09.3]} 38. Ne7 {[%clk 0:00:33.5]} 38... Qc7
{[%clk 0:00:08.1]} 39. Nd5 {[%clk 0:00:33.6]} 39... Qd8 {[%clk 0:00:09]} 40. Qc2
{[%clk 0:00:34.9]} 40... Qg5+ {[%clk 0:00:09.4]} 41. Kf2 {[%clk 0:00:36.1]}
41... Qh4+ {[%clk 0:00:10.4]} 42. Kf1 {[%clk 0:00:37.6]} 42... Qh3+ {[%clk
0:00:11.1]} 43. Ke1 {[%clk 0:00:34.6]} 43... Qc8 {[%clk 0:00:06.7]} 44. Qxc8+
{[%clk 0:00:32.5]} 44... Kxc8 {[%clk 0:00:08.6]} 45. Ke2 {[%clk 0:00:32.2]}
45... Kd7 {[%clk 0:00:09.5]} 46. Bb5+ {[%clk 0:00:29.8]} 46... Ke6 {[%clk
0:00:09.1]} 47. a4 {[%clk 0:00:29.8]} 47... f5 {[%clk 0:00:09.1]} 48. Bc4 {[%clk
0:00:29.3]} 48... fxe4 {[%clk 0:00:09.6]} 49. Nxf4+ {[%clk 0:00:28.5]} 49... Kf5
{[%clk 0:00:04.1]} 50. Nxh5 {[%clk 0:00:28.5]} 50... Kg5 {[%clk 0:00:03]} 51.
Ng3 {[%clk 0:00:27]} 51... exf3+ {[%clk 0:00:04.2]} 52. Kxf3 {[%clk 0:00:28.2]}
52... Kh4 {[%clk 0:00:05.5]} 53. Be6 {[%clk 0:00:22.5]} 53... b6 {[%clk
0:00:04.2]} 54. Nf5+ {[%clk 0:00:22.4]} 54... Kg5 {[%clk 0:00:04.5]} 55. h4+
{[%clk 0:00:23.8]} 55... Kf6 {[%clk 0:00:05.5]} 56. Bc8 {[%clk 0:00:25.5]} 56...
d5 {[%clk 0:00:06.4]} 57. Ne3 {[%clk 0:00:25]} 57... d4 {[%clk 0:00:07.1]} 58.
Ng4+ {[%clk 0:00:26.6]} 1-0

[Event "*** Titled Tuesday 3|2 Blitz"]
[Site "Chess.com"]
[Date "2017.06.06"]
[Round "4"]
[White "GMNeiksans"]
[Black "johnathan113"]
[Result "1-0"]
[WhiteElo "2699"]
[BlackElo "2459"]
[TimeControl "180+2"]
[EndTime "14:41:18 PDT"]
[Termination "GMNeiksans won on time"]

1. e4 {[%clk 0:03:02]} 1... g6 {[%clk 0:03:00.2]} 2. d4 {[%clk 0:03:01.7]} 2...
Nf6 {[%clk 0:03:00.5]} 3. e5 {[%clk 0:03:00]} 3... Nh5 {[%clk 0:03:00.7]} 4. Nf3
{[%clk 0:02:57.8]} 4... d6 {[%clk 0:03:00.8]} 5. Bc4 {[%clk 0:02:54.7]} 5... Nc6
{[%clk 0:02:51.3]} 6. O-O {[%clk 0:02:46.5]} 6... d5 {[%clk 0:02:45.4]} 7. Bb5
{[%clk 0:02:43.3]} 7... Bg4 {[%clk 0:02:36]} 8. h3 {[%clk 0:02:40.6]} 8... Bxf3
{[%clk 0:02:36.2]} 9. Qxf3 {[%clk 0:02:32.5]} 9... e6 {[%clk 0:02:36.6]} 10. Be3
{[%clk 0:02:17.7]} 10... Ng7 {[%clk 0:02:33.7]} 11. g4 {[%clk 0:02:02.3]} 11...
h5 {[%clk 0:02:28.7]} 12. Kg2 {[%clk 0:02:03.1]} 12... hxg4 {[%clk 0:02:25.3]}
13. hxg4 {[%clk 0:02:03]} 13... Qh4 {[%clk 0:02:21.8]} 14. Qg3 {[%clk
0:02:02.8]} 14... Be7 {[%clk 0:02:15.6]} 15. Nd2 {[%clk 0:01:52.1]} 15... a6
{[%clk 0:01:59.3]} 16. Bxc6+ {[%clk 0:01:51.7]} 16... bxc6 {[%clk 0:02:01.2]}
17. Rh1 {[%clk 0:01:45.2]} 17... Qxg3+ {[%clk 0:01:59.2]} 18. Kxg3 {[%clk
0:01:45.9]} 18... O-O-O {[%clk 0:01:49.6]} 19. Nf3 {[%clk 0:01:43.7]} 19... Rdf8
{[%clk 0:01:25.5]} 20. Bg5 {[%clk 0:01:38.3]} 20... Kd8 {[%clk 0:01:09.5]} 21.
Bf6 {[%clk 0:01:12.3]} 21... Rhg8 {[%clk 0:01:08.9]} 22. Rh7 {[%clk 0:01:02.9]}
22... Ne8 {[%clk 0:01:08.2]} 23. g5 {[%clk 0:00:59.9]} 23... Kd7 {[%clk
0:00:55.3]} 24. Rd1 {[%clk 0:00:59.4]} 24... Bd8 {[%clk 0:00:43.5]} 25. Rd3
{[%clk 0:00:56.9]} 25... Be7 {[%clk 0:00:29.7]} 26. Kg2 {[%clk 0:00:48.8]} 26...
c5 {[%clk 0:00:25.5]} 27. c3 {[%clk 0:00:46.7]} 27... c4 {[%clk 0:00:18.5]} 28.
Rd1 {[%clk 0:00:47.2]} 28... a5 {[%clk 0:00:18.1]} 29. b3 {[%clk 0:00:47.8]}
29... cxb3 {[%clk 0:00:16]} 30. axb3 {[%clk 0:00:47.9]} 30... Ba3 {[%clk
0:00:14.1]} 31. Rd2 {[%clk 0:00:45.9]} 31... Nxf6 {[%clk 0:00:11.9]} 32. gxf6
{[%clk 0:00:41.4]} 32... Rh8 {[%clk 0:00:12.6]} 33. Rxh8 {[%clk 0:00:39]} 33...
Rxh8 {[%clk 0:00:14.5]} 34. Ra2 {[%clk 0:00:37.7]} 34... Bc1 {[%clk 0:00:14.7]}
35. Rxa5 {[%clk 0:00:33.2]} 35... Rb8 {[%clk 0:00:14.5]} 36. b4 {[%clk
0:00:32.7]} 36... Bb2 {[%clk 0:00:12.4]} 37. Rc5 {[%clk 0:00:29.8]} 37... Ra8
{[%clk 0:00:13]} 38. Ng5 {[%clk 0:00:30.4]} 38... Ra3 {[%clk 0:00:08.1]} 39.
Nxf7 {[%clk 0:00:30]} 39... Rxc3 {[%clk 0:00:08.4]} 40. Rxc3 {[%clk 0:00:19.7]}
40... Bxc3 {[%clk 0:00:08.5]} 41. b5 {[%clk 0:00:20.3]} 41... Bxd4 {[%clk
0:00:08.6]} 42. f4 {[%clk 0:00:21.2]} 42... Bc5 {[%clk 0:00:02.8]} 43. Kf3
{[%clk 0:00:21.2]} 43... Ke8 {[%clk 0:00:03.9]} 44. Ng5 {[%clk 0:00:21.8]} 44...
Kd7 {[%clk 0:00:04.1]} 45. Nh7 {[%clk 0:00:20.4]} 45... Ke8 {[%clk 0:00:04.2]}
46. Kg4 {[%clk 0:00:21.3]} 46... Bb4 {[%clk 0:00:04]} 47. Ng5 {[%clk 0:00:21.1]}
47... Kd7 {[%clk 0:00:04.3]} 48. Nf3 {[%clk 0:00:21.6]} 48... Bc5 {[%clk
0:00:04.1]} 49. Ne1 {[%clk 0:00:21.6]} 49... Ke8 {[%clk 0:00:02.4]} 50. Nf3
{[%clk 0:00:18.9]} 50... Be3 {[%clk 0:00:02.7]} 51. Kg5 {[%clk 0:00:16.6]} 51...
Kd7 {[%clk 0:00:03.6]} 52. Kxg6 {[%clk 0:00:15.4]} 1-0

[Event "*** Titled Tuesday 3|2 Blitz"]
[Site "Chess.com"]
[Date "2017.06.06"]
[Round "4"]
[White "MITerryble"]
[Black "robbykevlishvili"]
[Result "0-1"]
[WhiteElo "2647"]
[BlackElo "2104"]
[TimeControl "180+2"]
[EndTime "14:41:19 PDT"]
[Termination "robbykevlishvili won on time"]

1. d4 {[%clk 0:03:02]} 1... d5 {[%clk 0:02:58.4]} 2. Nf3 {[%clk 0:03:03]} 2...
Nf6 {[%clk 0:02:58.5]} 3. c4 {[%clk 0:03:03.8]} 3... c6 {[%clk 0:02:59.9]} 4. e3
{[%clk 0:03:03.9]} 4... Bg4 {[%clk 0:03:00.2]} 5. Qb3 {[%clk 0:03:01.9]} 5...
Qb6 {[%clk 0:03:00.7]} 6. Ne5 {[%clk 0:03:02.5]} 6... Bh5 {[%clk 0:02:57.2]} 7.
Nc3 {[%clk 0:03:03.4]} 7... e6 {[%clk 0:02:57.5]} 8. Bd3 {[%clk 0:02:55.3]} 8...
Nfd7 {[%clk 0:02:56.6]} 9. Nxd7 {[%clk 0:02:54.8]} 9... Nxd7 {[%clk 0:02:57.2]}
10. O-O {[%clk 0:02:56.4]} 10... Bg6 {[%clk 0:02:56.4]} 11. Bxg6 {[%clk
0:02:41.6]} 11... hxg6 {[%clk 0:02:58.3]} 12. h3 {[%clk 0:02:42.7]} 12... Be7
{[%clk 0:02:58.8]} 13. Qc2 {[%clk 0:02:37.7]} 13... dxc4 {[%clk 0:02:58.1]} 14.
Ne4 {[%clk 0:02:34.8]} 14... Qa6 {[%clk 0:02:58.4]} 15. Bd2 {[%clk 0:02:31.6]}
15... O-O {[%clk 0:02:54.2]} 16. a4 {[%clk 0:02:29.8]} 16... Rac8 {[%clk
0:02:51.3]} 17. Rfc1 {[%clk 0:02:28]} 17... c5 {[%clk 0:02:39.5]} 18. Qxc4
{[%clk 0:02:26]} 18... Qxc4 {[%clk 0:02:39.3]} 19. Rxc4 {[%clk 0:02:24.4]} 19...
Nb6 {[%clk 0:02:40.7]} 20. Rxc5 {[%clk 0:02:08.7]} 20... Bxc5 {[%clk 0:02:39.9]}
21. Nxc5 {[%clk 0:01:59.2]} 21... Nc4 {[%clk 0:02:40.2]} 22. Bc3 {[%clk
0:01:57.6]} 22... b6 {[%clk 0:02:41.1]} 23. Nd3 {[%clk 0:01:58.3]} 23... Rfd8
{[%clk 0:02:38.7]} 24. Kf1 {[%clk 0:01:59.2]} 24... Nd6 {[%clk 0:02:34.9]} 25.
f3 {[%clk 0:01:57.2]} 25... f6 {[%clk 0:02:19.9]} 26. Ke2 {[%clk 0:01:54.6]}
26... Kf7 {[%clk 0:02:20.9]} 27. e4 {[%clk 0:01:55.7]} 27... Nc4 {[%clk
0:02:11]} 28. Rc1 {[%clk 0:01:48.6]} 28... Na5 {[%clk 0:02:11.5]} 29. Bxa5
{[%clk 0:01:32.5]} 29... Rxc1 {[%clk 0:02:10.5]} 30. Nxc1 {[%clk 0:01:34.4]}
30... bxa5 {[%clk 0:02:11.8]} 31. Kd3 {[%clk 0:01:35.7]} 31... Rb8 {[%clk
0:02:07]} 32. b3 {[%clk 0:01:36.6]} 32... Ke7 {[%clk 0:02:00.6]} 33. Kc3 {[%clk
0:01:36.5]} 33... Rc8+ {[%clk 0:01:59.2]} 34. Kd2 {[%clk 0:01:36.9]} 34... Kd6
{[%clk 0:01:56.3]} 35. Nd3 {[%clk 0:01:34.9]} 35... e5 {[%clk 0:01:55.2]} 36.
dxe5+ {[%clk 0:01:24.6]} 36... fxe5 {[%clk 0:01:55.7]} 37. Nb2 {[%clk
0:01:26.5]} 37... Kc5 {[%clk 0:01:54.2]} 38. Kc3 {[%clk 0:01:22]} 38... Rd8
{[%clk 0:01:47.5]} 39. Nc4 {[%clk 0:01:20.6]} 39... Rd1 {[%clk 0:01:45.2]} 40.
Nxe5 {[%clk 0:01:21.5]} 40... Rc1+ {[%clk 0:01:44.8]} 41. Kd2 {[%clk 0:01:16.8]}
41... Rg1 {[%clk 0:01:45.3]} 42. Nd3+ {[%clk 0:01:17.7]} 42... Kd4 {[%clk
0:01:46.1]} 43. Nf4 {[%clk 0:01:19.2]} 43... Rb1 {[%clk 0:01:31.8]} 44. Ne2+
{[%clk 0:01:20]} 44... Kc5 {[%clk 0:01:29.2]} 45. Kc3 {[%clk 0:01:16.6]} 45...
Rf1 {[%clk 0:01:27.2]} 46. Nf4 {[%clk 0:01:12.6]} 46... Rc1+ {[%clk 0:01:26.8]}
47. Kd2 {[%clk 0:01:08.9]} 47... Rb1 {[%clk 0:01:26.9]} 48. Kc3 {[%clk
0:01:07.6]} 48... Rc1+ {[%clk 0:01:26.4]} 49. Kd2 {[%clk 0:01:08]} 49... Rb1
{[%clk 0:01:26.3]} 50. Kc2 {[%clk 0:01:01.4]} 50... Rg1 {[%clk 0:01:25.4]} 51.
h4 {[%clk 0:01:02.1]} 51... Kb4 {[%clk 0:01:24.6]} 52. e5 {[%clk 0:01:00.3]}
52... Kc5 {[%clk 0:01:23.2]} 53. Kd3 {[%clk 0:00:58.2]} 53... a6 {[%clk
0:01:16]} 54. g4 {[%clk 0:00:51]} 54... Rb1 {[%clk 0:01:09.8]} 55. Nxg6 {[%clk
0:00:34.6]} 55... Kd5 {[%clk 0:01:10.1]} 56. f4 {[%clk 0:00:30]} 56... Rxb3+
{[%clk 0:01:10.5]} 57. Ke2 {[%clk 0:00:31.3]} 57... Rb4 {[%clk 0:01:07.3]} 58.
Kf3 {[%clk 0:00:30.2]} 58... Rxa4 {[%clk 0:01:04.1]} 59. f5 {[%clk 0:00:30.7]}
59... Rb4 {[%clk 0:01:01.5]} 60. e6 {[%clk 0:00:17.6]} 60... Kd6 {[%clk
0:01:00.1]} 61. h5 {[%clk 0:00:14.2]} 61... a4 {[%clk 0:00:59.8]} 62. h6 {[%clk
0:00:15.5]} 62... gxh6 {[%clk 0:01:00.1]} 63. e7 {[%clk 0:00:16.8]} 63... Rb8
{[%clk 0:00:45.8]} 64. f6 {[%clk 0:00:17.9]} 64... Ke6 {[%clk 0:00:46.8]} 65.
Ne5 {[%clk 0:00:19.8]} 65... a3 {[%clk 0:00:42.7]} 66. Nc6 {[%clk 0:00:18.1]}
66... Ra8 {[%clk 0:00:34.3]} 67. Nd8+ {[%clk 0:00:18.5]} 67... Kd7 {[%clk
0:00:33.7]} 68. Nc6 {[%clk 0:00:17.3]} 68... Ke8 {[%clk 0:00:28.9]} 69. Nb4
{[%clk 0:00:04.1]} 69... Kf7 {[%clk 0:00:29.6]} 70. Kf4 {[%clk 0:00:02]} 70...
Kxf6 {[%clk 0:00:30.2]} 0-1

[Event "*** Titled Tuesday 3|2 Blitz"]
[Site "Chess.com"]
[Date "2017.06.06"]
[Round "4"]
[White "dinevmk"]
[Black "Jahonas"]
[Result "1/2-1/2"]
[WhiteElo "2052"]
[BlackElo "2209"]
[TimeControl "180+2"]
[EndTime "14:41:41 PDT"]
[Termination "Game drawn by repetition"]

1. e4 {[%clk 0:03:02]} 1... c6 {[%clk 0:03:00.1]} 2. Nc3 {[%clk 0:03:02.8]} 2...
d5 {[%clk 0:02:56.5]} 3. d4 {[%clk 0:03:03]} 3... dxe4 {[%clk 0:02:57.1]} 4.
Nxe4 {[%clk 0:03:02.8]} 4... Bf5 {[%clk 0:02:58.6]} 5. Ng3 {[%clk 0:03:03.3]}
5... Bg6 {[%clk 0:02:51.5]} 6. N1e2 {[%clk 0:03:03.4]} 6... Nd7 {[%clk 0:02:52]}
7. Nf4 {[%clk 0:03:03.5]} 7... e6 {[%clk 0:02:53]} 8. Nxg6 {[%clk 0:03:02.3]}
8... hxg6 {[%clk 0:02:53.5]} 9. Bd3 {[%clk 0:03:02.6]} 9... Bd6 {[%clk
0:02:54.4]} 10. c3 {[%clk 0:03:01.1]} 10... Qh4 {[%clk 0:02:50]} 11. Qf3 {[%clk
0:02:56.8]} 11... Ngf6 {[%clk 0:02:44.2]} 12. Ne2 {[%clk 0:02:49.1]} 12... e5
{[%clk 0:02:27.7]} 13. g3 {[%clk 0:02:25.3]} 13... Qh3 {[%clk 0:02:23.3]} 14.
Bd2 {[%clk 0:02:19.9]} 14... O-O-O {[%clk 0:02:21.3]} 15. O-O-O {[%clk 0:02:16]}
15... Rhe8 {[%clk 0:02:19.6]} 16. Bc2 {[%clk 0:02:10.8]} 16... e4 {[%clk
0:02:14.7]} 17. Qe3 {[%clk 0:02:05]} 17... Ng4 {[%clk 0:02:11.7]} 18. Nf4 {[%clk
0:02:05.1]} 18... Nxe3 {[%clk 0:01:53.6]} 19. Nxh3 {[%clk 0:02:04.9]} 19... Nxd1
{[%clk 0:01:53.6]} 20. Bxd1 {[%clk 0:02:04.4]} 20... Nf6 {[%clk 0:01:46.1]} 21.
Ng5 {[%clk 0:02:03.8]} 21... Re7 {[%clk 0:01:46]} 22. h4 {[%clk 0:02:00.8]}
22... Rf8 {[%clk 0:01:34.1]} 23. c4 {[%clk 0:02:00.3]} 23... e3 {[%clk
0:01:33.7]} 24. Bxe3 {[%clk 0:01:44.2]} 24... Bxg3 {[%clk 0:01:33.4]} 25. d5
{[%clk 0:01:45]} 25... b6 {[%clk 0:01:00.1]} 26. dxc6 {[%clk 0:01:37.2]} 26...
Bd6 {[%clk 0:00:50.6]} 27. Bf3 {[%clk 0:01:33.5]} 27... Kc7 {[%clk 0:00:43.3]}
28. Kc2 {[%clk 0:01:31.9]} 28... Nh5 {[%clk 0:00:41.8]} 29. a3 {[%clk
0:01:25.7]} 29... Rfe8 {[%clk 0:00:41.9]} 30. b4 {[%clk 0:01:20.3]} 30... Nf4
{[%clk 0:00:41.5]} 31. c5 {[%clk 0:01:16.3]} 31... Be5 {[%clk 0:00:38.1]} 32.
cxb6+ {[%clk 0:01:10.9]} 32... axb6 {[%clk 0:00:38.7]} 33. a4 {[%clk 0:01:11.3]}
33... Ra8 {[%clk 0:00:37.3]} 34. a5 {[%clk 0:01:10.4]} 34... bxa5 {[%clk
0:00:37.8]} 35. b5 {[%clk 0:01:11.4]} 35... Rb8 {[%clk 0:00:17.6]} 36. Rb1
{[%clk 0:01:08.1]} 36... Rb6 {[%clk 0:00:15.9]} 37. Bh1 {[%clk 0:00:56.7]} 37...
a4 {[%clk 0:00:14.8]} 38. Nf3 {[%clk 0:00:56.8]} 38... Bd6 {[%clk 0:00:15.7]}
39. Nd2 {[%clk 0:00:52.2]} 39... a3 {[%clk 0:00:13.3]} 40. Nc4 {[%clk
0:00:51.8]} 40... Rxe3 {[%clk 0:00:10.1]} 41. fxe3 {[%clk 0:00:50.9]} 41... Ne6
{[%clk 0:00:09.5]} 42. Nxa3 {[%clk 0:00:47.5]} 42... Bxa3 {[%clk 0:00:09.9]} 43.
Kc3 {[%clk 0:00:44.1]} 43... Bd6 {[%clk 0:00:10.3]} 44. Kc4 {[%clk 0:00:44.6]}
44... Kd8 {[%clk 0:00:10.5]} 45. Ra1 {[%clk 0:00:44.5]} 45... Nc7 {[%clk
0:00:11]} 46. Ra5 {[%clk 0:00:43.5]} 46... f6 {[%clk 0:00:11.7]} 47. Bd5 {[%clk
0:00:41.9]} 47... Bg3 {[%clk 0:00:12.2]} 48. Bf7 {[%clk 0:00:40.5]} 48... Bxh4
{[%clk 0:00:13.1]} 49. Kc5 {[%clk 0:00:41.3]} 49... Rxb5+ {[%clk 0:00:11.2]} 50.
Rxb5 {[%clk 0:00:41.9]} 50... Nxb5 {[%clk 0:00:13.1]} 51. Kxb5 {[%clk
0:00:42.7]} 51... g5 {[%clk 0:00:12.2]} 52. Kb6 {[%clk 0:00:42.3]} 52... Bg3
{[%clk 0:00:13]} 53. Kb7 {[%clk 0:00:42.5]} 53... Bd6 {[%clk 0:00:13.5]} 54. Bg6
{[%clk 0:00:42.2]} 54... g4 {[%clk 0:00:14.3]} 55. Bh5 {[%clk 0:00:42]} 55... g3
{[%clk 0:00:15.2]} 56. Bf3 {[%clk 0:00:42.4]} 56... f5 {[%clk 0:00:14.8]} 57.
Kb6 {[%clk 0:00:42.5]} 57... g5 {[%clk 0:00:15]} 58. Kb5 {[%clk 0:00:42.7]}
58... Ke7 {[%clk 0:00:13.9]} 59. Kc4 {[%clk 0:00:42.7]} 59... Ke6 {[%clk
0:00:13.8]} 60. Kd4 {[%clk 0:00:42.5]} 60... Bc7 {[%clk 0:00:14.8]} 61. Bd5+
{[%clk 0:00:40.8]} 61... Kd6 {[%clk 0:00:15.4]} 62. Bf3 {[%clk 0:00:38.1]} 62...
Bb6+ {[%clk 0:00:16.1]} 63. Kd3 {[%clk 0:00:37.9]} 63... Ke5 {[%clk 0:00:17]}
64. Bg2 {[%clk 0:00:38.2]} 64... f4 {[%clk 0:00:12.9]} 65. exf4+ {[%clk
0:00:35.9]} 65... gxf4 {[%clk 0:00:13.7]} 66. Bf3 {[%clk 0:00:35.6]} 66... Kf5
{[%clk 0:00:13.6]} 67. Ke2 {[%clk 0:00:35]} 67... Kg5 {[%clk 0:00:14.2]} 68. Kf1
{[%clk 0:00:35.6]} 68... Kh4 {[%clk 0:00:14.8]} 69. Kg2 {[%clk 0:00:35.9]} 69...
Bc7 {[%clk 0:00:15.1]} 70. Bd5 {[%clk 0:00:35.9]} 70... Kg4 {[%clk 0:00:15.8]}
71. Bf3+ {[%clk 0:00:36.2]} 71... Kf5 {[%clk 0:00:16.9]} 72. Bd5 {[%clk
0:00:36.4]} 72... Ke5 {[%clk 0:00:18.3]} 73. Bf3 {[%clk 0:00:36.6]} 73... Kd4
{[%clk 0:00:19.5]} 74. Bg4 {[%clk 0:00:36.9]} 74... Ke3 {[%clk 0:00:20.3]} 75.
Bf3 {[%clk 0:00:37.3]} 75... Bd6 {[%clk 0:00:21.6]} 76. Bg4 {[%clk 0:00:37]}
76... Bc7 {[%clk 0:00:23.5]} 77. Bf3 {[%clk 0:00:37.3]} 77... Bd6 {[%clk
0:00:25.4]} 78. Bg4 {[%clk 0:00:37.7]} 78... Bc7 {[%clk 0:00:27.3]} 79. Bf3
{[%clk 0:00:38]} 79... Bd6 {[%clk 0:00:28.3]} 80. Bg4 {[%clk 0:00:38.3]} 80...
Bc7 {[%clk 0:00:30.2]} 1/2-1/2